{"text_format":"1","workbook":"xlsx","n_sheets":8,"sheets":["Cover Page","Davey Customer Info Form","Base Models","Floor Plan","Purchaser Specs","Work Order Form","VIN Verfication Form","Inspection Form"],"not_rendered":{"charts":0,"images":12,"macros":1,"external_links":0,"defined_names":2,"comments":0,"pivot_tables":0},"unopened":[],"bounds":{"document_bytes":16777216,"sheet_cells":100000,"rows_first":2000,"rows_last":500,"rows_between":2000,"halvings":0,"cell_chars":16384,"cell_head_chars":4096},"cells_cut":0,"cells_raw":0,"read":"whole","date_system":"1900"}

{"sheet":"Cover Page","index":0,"n_rows":52,"n_cols":4,"rows_kept":52,"cut":false,"hidden":false,"merged":[[48,3,48,6],[49,3,49,6],[50,3,50,6],[51,3,51,6],[24,2,25,7],[27,3,27,6],[40,3,40,6],[46,3,46,6],[47,3,47,6]]}
[]
[]
[]
[]
[]
[]
[]
[]
[]
[]
[]
[]
[]
[]
[]
[]
[]
[]
[]
[]
[]
[]
[]
[]
[null,null,"2023 Narrow Body Vehicle Procurement "]
[]
[]
[null,null,null,"RFP Number: 23RFP8924"]
[]
[]
[]
[]
[]
[]
[]
[]
[]
[]
[]
[]
[]
[]
[]
[]
[]
[]
[null,null,null,"Return all Bids to:"]
[null,null,null,"Brenda Sharkey, Program Manager"]
[null,null,null,"South Dakota Department of Transportation"]
[null,null,null,"Office of Air, Rail and Transit"]
[null,null,null,"700 East Broadway Ave."]
[null,null,null,"Pierre, South Dakota 57501"]

{"sheet":"Davey Customer Info Form","index":1,"n_rows":24,"n_cols":1,"rows_kept":24,"cut":false,"hidden":false,"merged":[[22,1,22,2],[23,1,23,2],[15,0,15,2],[16,0,16,2],[17,1,17,2],[18,0,19,0],[18,1,18,2],[19,1,19,2],[13,0,14,0],[13,1,13,2],[14,1,14,2],[20,0,20,2],[21,0,21,2],[9,0,9,2],[10,0,10,2],[11,0,12,0],[11,1,11,2],[12,1,12,2],[5,1,5,2],[6,0,7,0],[6,1,6,2],[7,1,7,2],[8,1,8,2],[1,0,1,2],[2,1,2,2],[3,1,3,2],[4,1,4,2],[0,0,0,2]]}
["7182 Reynolds Drive, Sedalia, CO 80135\n(800)873-1856 • www.DaveyCoach.com"]
["GENERAL CUSTOMER NAME AND CONTACT INFORMATION"]
["Customer Legal Name:"]
["Customer Contact Name:"]
["Customer Contact Phone:"]
["Customer Contact Email:"]
["Customer Contact Mailing Address:"]
[]
["FORD FIN Code:"]
[]
["CUSTOMER INVOICE INFORMATION"]
["Customer Bill To Address:"]
[]
["Customer Point of Delivery (Street Address):"]
[]
[]
["APPLICATION FOR TITLE / DOT NAME AND ADDRESS"]
["Customer Legal Title Name:"]
["Customer Legal Title Address:"]
[]
[]
["INSURANCE INFORMATION"]
["Insurance Company Name:"]
["Customer Policy #:"]

{"sheet":"Base Models","index":2,"n_rows":101,"n_cols":7,"rows_kept":101,"cut":false,"hidden":false,"merged":[[97,3,97,5],[92,3,92,5],[93,3,93,5],[94,3,94,5],[95,3,95,5],[96,3,96,5],[9,2,9,4],[9,5,9,6],[10,2,10,4],[10,5,10,6],[11,2,11,4],[11,5,11,6],[12,2,12,4],[12,5,12,6],[13,2,13,4],[13,5,13,6],[14,2,14,4],[14,5,14,6],[15,2,15,4],[15,5,15,6],[16,2,16,4],[16,5,16,6],[17,2,17,4],[17,5,17,6]]}
[]
[]
[]
[]
[]
[]
[]
[]
[]
[null,"Date:"]
[null,"End User:"]
[null,"Contact:"]
[null,"Address:",null,null,null,"7182 Reynolds Dr."]
[null,"City:",null,null,null,"Sedalia, CO 80135"]
[null,"State:",null,null,null,"chuckn@daveycoach.com"]
[null,"Zip:",null,null,null,"(406) 505-0181"]
[null,"Phone:"]
[null,"Email:"]
[]
[]
[]
[]
[]
[]
[null,null,null,null,null,null,"EXTENDED"]
["QTY.","PART_ID","DESCRIPTION","ADDITIONAL INFO.","UM","UNIT_PRICE","PRICE"]
[]
[]
[null,"Base Units"]
[null,"Base Unit A","High Roof, 148” Wheelbase, 14 Passenger ","w/Aftermarket Bus Door","EA",113112.5,{"$f":"A30*F30","v":0}]
[null,"Base Unit B","High Roof, 148” Wheelbase, 9 Passenger ","w/Aftermarket Bus Door","EA",105239.5,{"$f":"A31*F31","v":0}]
[null,"Base Unit C","High Roof, 148” Wheelbase, 4 + 2 WC","w/ Aftermarket Bus Door","EA",111274.2,0]
[null,"Base Unit D","High Roof, 148” Wheelbase, 5 + 2 WC or 7 Passengers ","w/ Aftermarket Bus Door","EA",111274.2,0]
[null,"Base Unit E","High Roof, 148” Wheelbase, 5 + 1 WC or 7 Passengers ","w/ Aftermarket Bus Door","EA",112623.5,0]
[null,"Base Unit F","High Roof, 148” Wheelbase, 7 + 1 WC SNS","w/ sliding door and shift and step, 22 feet long","EA",119617.5,0]
[null,"Base Unit G","High Roof, 148” Wheelbase, 5 + 2 WC SNS","w/ sliding door and shift and step, 22 feet long ","EA",119617.5,0]
[]
[]
[]
[]
[]
[null,"Options"]
["QTY.","Type","Item ","Description ","UM","Price","Extended Price"]
[null,"Option 1"," ADD: OEM Reverse sensing system",null,"EA",1911.9,{"$f":"A44*F44","v":0}]
[null,"Option 2"," ADD: OEM 2 additional power keys",null,"EA",219.8,{"$f":"A45*F45","v":0}]
[null,"Option 3"," ADD: OEM Blind spot information system (BLIS)",null,"EA",1125.2,0]
[null,"Option 4"," ADD: OEM adaptive cruise control (ACC)",null,"EA",874.7,0]
[null,"Option 5"," ADD: OEM 360-degree camera with split view",null,"EA","NA"]
[null,"Option 6"," ADD: Two-way radio antenna prep and prewire",null,"EA",328.5,0]
[null,"Option 7"," ADD:  Additional  Rear, floor mounted, aftermarket axillary heater",null,"EA",4307.3,0]
[null,"Option 8"," SUBSTITUTE: Heavy Duty Front Axle",null,"EA","NA"]
[null,"Option 9"," SUBSTITUTE: OEM Rear-Wheel Drive",null,"EA",-3000,0]
[null,"Option 10","Graphics 1","Simple single blue stripe and agency name","EA",2087.6999999999998,0]
[null,"Option 11","Graphics 2","custom Designed by you more than option 1","EA","TBD"]
[null,"Option 12","ADD: OEM Propane Engine Package",null,"EA","NA"]
[null,"Option 13","SUBSTITUTE: OEM 3.5L EcoBoost engine",null,"EA","NA"]
[null,"Option 14","SUBSTITUTE: OEM 31 Gallon Fuel Tank",null,"EA",379.1,0]
[null,"Option 15","ADD: Plexiglass barrier/modesty panel behind driver",null,"EA",2444.9,0]
[null,"Option 16","SUBSTITUTE: OEM short arm, power adjustment, power folding, heated mirrors with turn signals","Each Set, not avalable With BSD","EA",324.10000000000002,0]
[null,"Option 17","Substitute: Long  Arm-Power-adjusting, manual-folding heated with turn signals","in basse","EA","NA"]
[null,"Option 18"," ELIMINATE: The mobility aid station – Each location",null,"EA",-305,0]
[null,"Option 19"," ADD: Walker Securement System - Each",null,"EA",407.7,0]
[null,"Option 20"," ADD: Oxygen Tank Holder - Each",null,"EA",517.5,0]
[null,"Option 21"," ELIMINATE: The mobility lift system",null,"EA","NA"]
[null,"Option 22","ADD:  Mobility Lift Restraint  System such as Access-AriZe ",null,"EA","NA"]
[null,"Option 23","  SUBSTITUTE: Slide ‘N Click Retractors complete with floor anchors – Set of 4 (one wheelchair location)",null,"EA",636.20000000000005,0]
[null,"Option 24"," ADD: Extra length belts ",null,"EA",54.9,0]
[null,"Option 25","Add storage pouch for securement belts","Each -- talk about location.","EA",60.4]
[null,"Option 26","Delete  Armrests",null,"EA",-10,0]
[null,"Option 27","Single Integrated Child seat (ICS)","(For  vehicles  with modified interiors)","EA",2333.9,0]
[null,"Option 28"," Double Integrated Child Seat  (ICS)  ","(For vehicles with modified interiors)","EA",3023.9,0]
[null,"Option 29"," Vinyl Seating in Place of Cloth","level 5 vs 7 each seat","EA",-7,0]
[null,"Option 30"," Foldaway double seat",null,"EA",1876.8,0]
[null,"Option 31"," Co-pilot seat with storage console:",null,"EA","NA"]
[null,"Option 32"," Additional Single Rigid Seat- Each:",null,"EA",1309.8,0]
[null,"Option 33","Rubber shear spring suspension by MORryde or approved equal:",null,"EA","NA"]
[null,"Option 34"," Air Ride suspension by Kelderman or approved equal:",null,"EA","NA"]
[null,"Option 37"," Power running boards:",null,"EA","NA"]
[null,"Option 38"," Add a 4-camera system, 1080:",null,"EA",5713.8,0]
[null,"Option 39"," Add a 6-camera system, 1080:",null,"EA",6482.9,0]
[null,"Option 40"," ADD: Rear Bike rack","for one side door mount -- can do both sides  = X2","EA",8625.7000000000007,0]
[null,"Option 41"," ADD: Front Bike rack",null,"EA","NA"]
[null,"Unpublished Options",null,null,"EA",0,0]
[null,"Unpublished Options",null,null,"EA",0,0]
[null,"Unpublished Options",null,null,"EA",0,0]
[null,"Unpublished Options",null,null,"EA",0,0]
[null,"Unpublished Options",null,null,"EA",0,0]
[null,"Unpublished Options",null,null,"EA",0,0]
[null,"Unpublished Options",null,null,"EA",0,0]
[null,"Unpublished Options",null,null,"EA",0,0]
[null,"Unpublished Options",null,null,"EA",0,0]
[]
[null,null,null,"Base Unit Cost",null,null,{"$f":"SUM(G30:G37)","v":0}]
[null,null,null,"Total of all Options:",null,null,{"$f":"SUM(G44:G91)","v":0}]
[null,null,null,"Subtotal of Order:",null,null,{"$f":"SUM(G93:G94)","v":0}]
[null,null,null,"TOTAL:",null,null,{"$f":"G95","v":0}]
[null,null,null,"QUANTITY:"]
[null,null,null,"GRAND TOTAL:",null,null,{"$f":"G96*G97","v":0}]
[null,"Customer Signature:"]
[]
[null,"Date:"]

{"sheet":"Floor Plan","index":3,"n_rows":167,"n_cols":19,"rows_kept":167,"cut":false,"hidden":false,"merged":[[121,0,157,0],[97,1,98,6],[83,0,119,0],[0,0,1,5],[0,6,1,7],[2,9,2,11],[0,9,1,11],[2,6,3,7],[5,0,41,0],[44,0,80,0]]}
["Narrow Body Floor Plan Selections"]
[]
[null,null,null,null,null,null,"(Pick From Drop-Down Above)",null,null,"Customer Signature"]
[]
[]
[]
[]
[]
[]
[]
[]
[]
[null,null,null,null,null,null,null,null,null,null,null,null,null,null,null,null,null,null,"14 passenger "]
[]
[]
[]
[]
[]
[]
[]
[]
[]
[]
[]
[]
[]
[]
[]
[null,null,null,null,null,null,null,null,null,null,null,null,null,null,null,null,null,null,"9 passenger "]
[]
[]
[]
[]
[]
[]
[]
[]
[]
[]
[]
[]
[]
[]
[]
[]
[null,null,null,null,null,null,null,null,null,null,null,null,null,null,null,null,null,null,"4 + 2 WC bus door "]
[]
[]
[]
[]
[]
[]
[]
[]
[]
[]
[]
[]
[]
[]
[]
[]
[]
[]
[]
[]
[]
[]
[]
[]
[]
[]
[]
[]
[]
[]
[]
[]
[]
[null,null,null,null,null,null,null,null,null,null,null,null,null,null,null,null,null,null,"5 + 2 WC or 7 passenger"]
[]
[]
[]
[]
[]
[]
[]
[]
[]
[]
[]
[]
[]
[]
[]
[]
[]
[null,"Narrow Body Floor Plan Selections"]
[]
[]
[]
[]
[]
[]
[]
[]
[]
[]
[]
[]
[]
[]
[]
[]
[]
[]
[]
[]
[]
[]
[]
[]
[null,null,null,null,null,null,null,null,null,null,null,null,null,null,null,null,null,null,"5 + 1 WC or 7 passenger"]
[]
[]
[]
[]
[]
[]
[]
[]
[]
[]
[]
[]
[]
[]
[]
[]
[]
[]
[]
[null,null,null,null,null,null,null,null,null,null,null,null,null,null,null,null,null,null,"7 + 1 WC SNS"]
[]
[]
[]
[]
[]
[]
[]
[]
[]
[]
[]
[]
[]
[]
[]
[]
[]
[]
[]
[]
[]
[]
[]
[null,null,null,null,null,null,null,null,null,null,null,null,null,null,null,null,null,null,"5 + 2 WC  SNS"]

{"sheet":"Purchaser Specs","index":4,"n_rows":31,"n_cols":3,"rows_kept":31,"cut":false,"hidden":false,"merged":[[30,1,30,2],[0,0,0,2],[2,0,2,2],[3,0,3,2],[14,0,14,2],[15,0,15,2]]}
["PRODUCTION NOTES"]
[]
["PURCHASER REQUIRED SPECIFICATIONS"]
["Purchaser shall specify or approve optional configuration, mounting location, and operational preferences at time of order.  "]
["RFP ITEM","REQUIRED PURCHASER INPUT","PRODUCTION NOTES "]
["LOCKING FUEL DOOR","Specify KEEP fuel filler door or DELETE"]
["MASTER BATTERY DISCONNECT SWITCH","Specify switch mounting location preferences. (DRIVER STEPWELL ONLY)"]
["BATTERY BOX","Specify preference for keyed lock or thumb latch access panel securement."]
["FLOOR COVERING","Specify floor color from stock selections."]
["OVERHEAD COMPARTMENT","Specify keyed lock or thumb latches."]
["SEAT COVERING","Specify color and fabric type/level (within the guidelines of material type)."]
["SAFETY EQUIPMENT","Specify mounting locations for Fire Extinguisher, First Aid Kit, Reflective Triangles, and Body Fluid Kit."]
["SECURITY AND SURVEILLANCE SYSTEM","Specify camera view angles."]
[]
["PURCHASER SELECTED OPTION SPECIFICATIONS"]
["Purchaser shall provide preferences for option configurations at time of order.  Section and option numbers reference requirements detailed in Appendix A1 Technical Specifications."]
[]
["RFP ITEM","REQUIRED PURCHASER INPUT","PRODUCTION NOTES "]
["TELMA RETARDER","Specify foot pedal or dash lever activation"]
["AMBER LOADING LIGHTS","Specify automatic or manual activation."]
["YIELD TO BUS","Approve mounting location and activation method."]
["MERGE ALERT SIGN","Approve mounting location and activation method."]
["VINYL STORAGE POUCH","Specify mounting location."]
["UNDERSEAT TDSS","Specify mounting location."]
["CUSTOM PAINT AND GRAPHICS","Provide all paint/graphics configuration designs, photos, paint codes and approve elevation diagrams."]
["DESTINATION SIGNS","Specify interface controls mounting location."]
["FAREBOX","Specify mounting location."]
["FAREBOX PREP","Specify prewire harness power needs and termination point."]
["RADIO ANTENNA PREP","Specify pull tube and power/ground wires termination location."]
[]
["ADDITIONAL CONFIGURATION OR OPTION NOTES:","ADDITIONAL ADA PRIORITY SEATING SIGNAGE REQUIRED OVER FLIP/FOLDAWAY SEATING. 5TH TRACK IN FLOOR FOR SCOOTER SECUREMENT."]

{"sheet":"Work Order Form","index":5,"n_rows":69,"n_cols":8,"rows_kept":69,"cut":false,"hidden":false,"merged":[[68,1,68,8],[28,6,28,7],[29,6,29,7],[63,1,63,8],[64,1,64,8],[65,1,65,8],[66,1,66,8],[67,1,67,8],[58,1,58,8],[59,1,59,8],[60,1,60,8],[61,1,61,8],[62,1,62,8],[52,0,53,8],[54,1,54,8],[55,1,55,8],[56,1,56,8],[57,1,57,8],[40,0,43,4],[40,5,43,8],[45,6,45,8],[47,0,50,4],[46,0,46,4],[49,6,49,8],[47,5,47,8],[0,0,0,9],[1,0,1,3],[2,0,2,1],[39,5,39,8],[39,0,39,4],[14,0,14,2],[15,0,15,2],[17,0,17,3],[3,0,3,1],[2,2,2,4],[3,2,3,4],[5,0,5,3],[12,0,12,1],[34,0,34,1],[1,5,1,6],[1,7,1,8],[2,6,5,8],[6,5,6,8],[25,0,25,2],[26,2,26,3],[27,2,27,3],[19,0,19,2],[20,0,20,1],[13,0,13,2],[29,0,29,1],[30,0,30,1],[32,0,32,3],[23,0,23,3],[24,0,24,2]]}
["WORK ORDER INFO / TITLING INSTRUCTIONS"]
["WORK ORDER CHECKLIST",null,null,null,null,"STOCK #:"]
["Insurance Company:",null,null,null,null,"DOT Address:"]
["Policy Number:"]
[]
["Basic"]
["Trade In:",null,null,null,null,"Mechanical"]
["Condition:",null,null,null,null,"1. 4X4 Conversions:",null,"Installer:"]
["Location:",null,null,null,null,"2. Kelderman:",null,"Installer:"]
["DOT:",null,null,null,null,"3. Mor Rye @ Davey:"]
["Davey Up:",null,null,null,null,"4. Chrome Tip Req:"]
["Detail:",null,null,null,null,"5. DVR Protection Box:"]
["Delivery to Customer:",null,null,null,null,"6. Factory Defect List:"]
["Customer Picking up @ Davey:",null,null,null,null,"7. Check DEF (req. on Diesels):"]
["Travel Arrangements Needed:",null,null,null,null,"8. Alignment Req:"]
["Estimated Delivery Date:",null,null,null,null,"9. Check & Adjust WC Lift (Req on ADA Units):"]
[null,null,null,null,null,"10. Weight Slip:"]
["Graphics",null,null,null,null,"11. Floorplan Attached:"]
["Graphics: ",null,"Type:",null,null,"12. Luggage Wall:"]
["Graphic Files Been Recived:",null,null,null,null,"13. Surveillance Camera System:"]
["Point of Contact:",null,"Name:",null,null,"14. Back-Up Camera:"]
[null,null,"Contact:",null,null,"15. Back-Up Cam Type:"]
[null,null,null,null,null,"16. Location of Monitor:"]
["Fianace",null,null,null,null,"17. Ski Rack:"]
["Estimated Payment Date:",null,null,null,null,"18. Ski Rack Color:"]
["How are We Being Funded:",null,null,null,null,"19. Seat Changes:"]
["Fianace Co.","Name:",null,null,null,"20. Trailer Hitch Req:"]
[null,"Contact:",null,null,null,"21. Inverter:"]
[null,null,null,null,null,"22. Trailer Brakes Req:"]
["Incentive Info:",null,null,null,null,"23: Trailer Wiring:"]
["CCPA Form Required:",null,null,null,null,"24: If 7-Pin, Brake Controller Req:"]
[null,null,null,null,null,"25. USB Ports:"]
["Californa",null,null,null,null,"Location:",null,"Quantity:"]
["Smog Test:"]
["VIN Verification:"]
[]
[]
[]
[]
["Exact Name & Address the Vehicle will be Titled In:",null,null,null,null,"Where/to Whom Shall the Title Work be Mailed?"]
[]
[]
[]
[]
[]
["Is there a Lien Holder?",null,null,null,null,"Attn:"]
["Name & Address of Lien Holder:"]
[null,null,null,null,null,"Registration:"]
[null,null,null,null,null,"Are we registering",null,"How:"]
[null,null,null,null,null,"Special Exemption:"]
[]
[]
["SPECIAL INSTRUCTIONS"]
[]
[1]
[2]
[3]
[4]
[5]
[6]
[7]
[8]
[9]
[10]
[11]
[12]
[13]
[14]
[15]

{"sheet":"VIN Verfication Form","index":6,"n_rows":50,"n_cols":28,"rows_kept":50,"cut":false,"hidden":false,"merged":[[0,0,0,33],[1,0,1,33],[2,0,2,33],[3,0,3,4],[3,5,3,10],[3,11,3,13],[3,14,3,25],[3,26,3,32],[4,0,4,4],[4,5,4,32],[5,0,5,33],[6,0,6,5],[6,7,6,13],[6,15,6,25],[6,27,6,32],[7,0,7,5],[7,7,7,13],[7,15,7,25],[7,27,7,32],[8,0,8,5],[8,7,8,13],[8,15,8,25],[8,27,8,32],[9,0,9,5],[9,7,9,13],[9,15,9,25],[9,27,9,32],[10,0,10,5],[10,7,10,13],[10,15,10,25],[10,27,10,32],[11,0,11,5],[11,7,11,13],[11,15,11,25],[11,27,11,32],[12,0,12,5],[12,7,12,13],[12,15,12,25],[12,27,12,32],[14,0,14,4],[14,5,14,32],[15,16,15,17],[15,22,15,24],[15,27,15,28],[15,30,15,31],[16,3,17,13],[16,16,16,17],[16,21,17,32],[17,0,17,1],[17,15,17,19],[19,0,19,4],[19,5,19,10],[19,11,19,32],[20,0,20,5],[20,6,20,32],[21,1,21,5],[21,7,21,12],[21,13,21,32],[23,1,23,5],[23,7,23,12],[23,13,23,32],[25,1,25,5],[25,7,25,12],[25,13,25,32],[29,0,29,4],[29,5,29,32],[30,0,30,32],[31,0,31,4],[31,5,31,32],[32,0,32,32],[33,0,33,4],[33,5,33,12],[33,13,33,19],[33,20,33,26],[33,27,33,29],[33,30,33,32],[35,0,35,33],[36,0,36,33],[37,0,37,22],[37,24,37,32],[38,0,38,33],[39,0,39,32],[40,0,40,33],[41,0,41,32],[42,0,42,33],[43,0,43,22],[43,24,43,32],[49,0,49,33],[44,0,44,33],[45,0,45,33],[46,0,46,32],[47,0,47,33],[48,0,48,22],[48,24,48,32]]}
["DR 2698 (05/16/23)\nCOLORADO DEPARTMENT OF REVENUE\nDivision of Motor Vehicles Vehicle Services Section DMV.Colorado.gov"]
["Verification of Vehicle Identification Number\nC.R.S. 24-32-3323, 38-29-122, 42-3-105(l)(c), 42-6-107(l)(b)"]
["Any Alteration or Erasure MAY Void This Document"]
["Type of Vehicle"]
["Vehicle Information\nVehicle Identification Number (VIN)"]
["Year                                      Make                               Body                               Model                              Width                      Length"]
[]
["Color",null,null,null,null,null,null,"CWT",null,null,null,null,null,null,null,"GVWR",null,null,null,null,null,null,null,null,null,null,null,"Print Fuel Type"]
[]
["License Plate Number",null,null,null,null,null,null,null,null,null,null,null,null,null,null,"State",null,null,null,null,null,null,null,null,null,null,null,"Expiration Date"]
[]
["Temporary Tag Number",null,null,null,null,null,null,null,null,null,null,null,null,null,null,"State",null,null,null,null,null,null,null,null,null,null,null,"Expiration Date"]
[]
[]
["Additional VIN\nVehicle Identification Number (VIN)"]
[]
[]
["Motor Number",null,null,null,null,null,null,null,null,null,null,null,null,null,null,"Coach Number"]
[]
["Reason for Inspection:"]
["Verified by:"]
[null,null,null,null,null,null,null,"Dealer Number"]
[]
[null,null,null,null,null,null,null,"Station Number"]
[]
[null,null,null,null,null,null,null,"If  'Other', explain:"]
[]
[]
[]
["Name of Business or Agency"]
[]
["Street Address"]
[]
["City",null,null,null,null,null,null,null,null,null,null,null,null,"Zip Code",null,null,null,null,null,null,null,null,null,null,null,null,null,"State"]
[]
["I certify, under penalty of perjury in the second degree, that I have completed a physical inspection of the vehicle/manufactured home described above and the information is true and correct to the best of my knowledge."]
["Printed First and Last Name of Inspector                                                                                             Date (MM/DD/YY)"]
[]
["Signature of Inspector"]
[]
["Title"]
[]
["Colorado Dealer Statement Concerning An Out Of State Vehicle\nC.R.S. 42-6-119(3)V\n                           Dealer                                                                                                                          Dealer Number"]
[]
["I certify, under penalty of perjury in the second degree, that the vehicle as described above met the following conditions at the time of sale:\n•   Was free and clear of all liens and encumbrances,\n•   Was not stolen,\n•   The dealership has a sure and adequate title to the vehicle; and\n•   The dealership has the right and authority to sell and transfer this vehicle."]
["Dealer Agent (Printed Name)"]
[]
["Dealer Agent Signature                                                                                                                           Date (MM/DD/YY)"]
[]
["(*Out of state law enforcement, military police or commanding officer)"]

{"sheet":"Inspection Form","index":7,"n_rows":77,"n_cols":10,"rows_kept":77,"cut":false,"hidden":false,"merged":[[0,0,0,9],[1,0,1,5],[1,6,1,9],[2,0,2,5],[2,6,2,9],[3,0,3,5],[3,6,3,9],[4,0,4,9],[5,0,5,3],[5,6,5,7],[6,0,6,3],[6,6,6,7],[7,0,7,3],[7,6,7,7],[8,0,8,3],[8,6,8,7],[9,0,9,3],[9,6,9,7],[10,0,10,3],[10,6,10,7],[11,0,11,3],[11,6,11,7],[12,0,12,3],[12,6,12,7],[13,0,13,3],[13,6,13,7],[14,0,14,3],[14,6,14,7],[15,0,15,3],[15,6,15,7],[16,0,16,3],[16,6,16,7],[17,0,17,3],[17,6,17,7],[18,0,18,3],[18,6,18,7],[19,0,19,3],[19,6,19,7],[20,0,20,3],[20,6,20,7],[21,0,21,3],[21,6,21,7],[22,0,22,3],[22,6,22,7],[23,0,23,3],[23,6,23,7],[24,0,24,3],[24,6,24,7],[25,0,25,3],[25,6,25,7],[26,0,26,3],[26,6,26,7],[27,0,27,3],[27,6,27,7],[28,0,28,3],[28,6,28,7],[29,0,29,3],[29,6,29,7],[30,0,30,3],[30,6,30,7],[31,0,31,3],[31,6,31,7],[32,0,32,3],[32,6,32,7],[33,0,33,3],[33,6,33,7],[34,0,34,3],[34,6,34,7],[35,0,35,3],[35,6,35,7],[36,0,36,3],[36,6,36,7],[37,0,37,3],[37,6,37,7],[38,0,38,3],[38,6,38,7],[39,0,39,3],[39,6,39,7],[40,0,40,3],[40,6,40,7],[41,0,41,3],[41,6,41,7],[42,0,42,3],[42,6,42,7],[43,0,43,3],[43,6,43,7],[44,0,44,3],[44,6,44,7],[45,0,45,3],[45,6,45,7],[46,0,46,3],[46,6,46,7],[47,0,47,9],[48,0,48,3],[48,6,48,7],[49,0,49,3],[49,6,49,7],[50,0,50,3],[50,6,50,7],[51,0,51,3],[51,6,51,7],[52,0,52,3],[52,6,52,7],[53,0,53,3],[53,6,53,7],[54,0,54,9],[55,0,55,3],[55,6,55,7],[56,0,56,3],[56,6,56,7],[57,0,57,3],[57,6,57,7],[58,0,58,3],[58,6,58,7],[59,0,59,3],[59,6,59,7],[60,0,60,9],[61,0,61,9],[62,0,62,1],[62,2,62,9],[63,0,63,1],[63,2,64,9],[64,0,64,1],[65,0,65,9],[66,0,66,9],[67,1,67,9],[68,1,69,9],[70,3,70,6],[70,7,70,9],[71,3,71,6],[71,7,71,9],[75,3,75,6],[75,7,75,9],[76,3,76,6],[76,7,76,9],[72,3,72,6],[72,7,72,9],[73,3,73,6],[73,7,73,9],[74,3,74,6],[74,7,74,9]]}
["Vehicle Inspection Checklist - SDDOT Narrow Body Van"]
["Purchaser Name:",null,null,null,null,null,"Van Chassis Year/Make/Model:"]
["Vehicle Delivery/Inspection Date:",null,null,null,null,null,"Van Body Upfitter Make/Model:"]
["Mileage at Delivery:",null,null,null,null,null,"VIN:"]
["*BASE MODEL SPECIFICATIONS MAY BE SUPERSEDED BY OPTIONS SELECTED ON ORDER*"]
["1.    WALKAROUND",null,null,null,"OK","NEEDS REPAIR","2.    UNDERHOOD",null,"OK","NEEDS REPAIR"]
["Vehicle Washed and Clean",null,null,null,null,null,"Engine Size and Type Matches Order"]
["Paint/Panels/Glass Undamaged",null,null,null,null,null,"Engine Oil"]
["Custom Paint and/or Graphics Matches Order",null,null,null,null,null,"Coolant"]
["Tires: All Season, Proper Pressure",null,null,null,null,null,"Power Steering Fluid"]
["Mud Flaps Front and Rear",null,null,null,null,null,"Brake Fluid"]
["No Leaks or Puddles Under Vehicle",null,null,null,null,null,"Windshield Washer Fluid"]
["Front/Rear License Plate Holders Mounted",null,null,null,null,null,"Belts/Hoses/Wiring Not Chafing/Rubbing"]
["Front/Rear Bumpers Mounted Level",null,null,null,null,null,"No Leaks/Residue"]
["60 Day Temporary Registration Tags",null,null,null,null,null,"Engine Block Heater"]
["Spare Tire/Wheel"]
["3.    LIGHTS",null,null,null,"OK","NEEDS\nREPAIR","4.    BATTERY AREA",null,"OK","NEEDS\nREPAIR"]
["Headlamps/Taillights",null,null,null,null,null,"Two HD 12 Volt Batteries – Under Driver Seat"]
["Turn Signals and Flashers",null,null,null,null,null,"Terminal Clamps and Lug Connections Tight"]
["Brake Lights",null,null,null,null,null,"Cabling and Wire Harnesses – Damage Free"]
["Marker, Clearance, and License Plate Lights"]
["Backup Lights and Alarm"]
["5.    WHEELCHAIR LIFT",null,null,null,"OK","NEEDS REPAIR","6.    SAFETY EQUIPMENT",null,"OK","NEEDS REPAIR"]
["800lb Lift (Ricon or Braun)",null,null,null,null,null,"Fire Extinguisher (Mounted)"]
["Lift Adjusted to Deploy/Stow Smoothly",null,null,null,null,null,"Triangle Reflector Kit (Mounted)"]
["Lift Loading Area Lights",null,null,null,null,null,"First Aid Kit"]
["Lift Door Interlock Operation",null,null,null,null,null,"Bloodborne Pathogen/Body Fluid Spill Kit"]
["W/C Securement Positions Match Order",null,null,null,null,null,"Web Cutter – In Packet"]
["Complete Q’Straint QRT MAX Tie Down Sets",null,null,null,null,null,"ADA Signage – In Packet"]
["Wall Mount Shoulder Belt Restraints"]
["Vinyl Storage Pouches (Mounted)"]
["Slider Door Access – Clear Movement"]
["7.    DRIVER COMPARTMENT",null,null,null,"OK","NEEDS REPAIR","8.    PASSENGER COMPARTMENT",null,"OK","NEEDS REPAIR"]
["Manually Adjustable Driver Seat and Seatbelt",null,null,null,null,null,"Seating Configuration Matches Order"]
["Power Locks, Doors, & Front Windows",null,null,null,null,null,"Seats Color/Material Matches Order"]
["Instrument Panel Gauges and Indicator Lights",null,null,null,null,null,"Seatbelts and Foldaways Easy to Use"]
["Full Tank of Fuel",null,null,null,null,null,"Seats Clean"]
["Windshield Wipers",null,null,null,null,null,"Floor Type/Color/Material Matches Order"]
["Horn",null,null,null,null,null,"OEM Radio/ 6 Speakers Operational"]
["Heated, Remote-Operated Side View Mirrors",null,null,null,null,null,"Interior Lights Operational"]
["Driver Console Switches and Functions",null,null,null,null,null,"Stanchions Secure and Mounted Per Spec"]
["12 Volt Power Points",null,null,null,null,null,"12 Volt Power Points"]
["Backup Camera Operational",null,null,null,null,null,"Interior Swept Clean and Undamaged"]
["A/C System (Front and Rear)"]
["Heating System (Front and Rear)"]
["9.    OPTIONAL VEHICLE FEATURES",null,null,null,"OK","NEEDS\nREPAIR","OPTIONAL VEHICLE FEATURES",null,"OK","NEEDS\nREPAIR"]
["Installed Components Match Order",null,null,null,null,null,"ITS Equipment Matches Order - Operational"]
["ROAD TEST"]
["10.  ROAD TEST",null,null,null,"OK","NEEDS REPAIR","ROAD TEST",null,"OK","NEEDS REPAIR"]
["Parking Brake",null,null,null,null,null,"Exterior Noise"]
["Service Brake",null,null,null,null,null,"Steering Drift/Pull"]
["Steering",null,null,null,null,null,"Ride Quality/Suspension"]
["Interior Noise"]
[]
["Additional Options"]
["11. Optional Features",null,null,null,"OK","NEEDS REPAIR","11. Optional Features",null,"OK","NEEDS REPAIR"]
[]
[]
[]
[]
[]
["NOTES: Please list the section number and noted defect of any item checked as “NEEDS REPAIR” in the box below."]
["SECTION#",null,"DEFECT OR DEFICIENCY AND RESOLUTION"]
[]
[]
["Acceptance          "]
["Based on the results of this inspection, please indicate whether or not this vehicle shall be accepted in its present condition."]
["Yes","No"]
[null,"Why not?"]
[]
[null,null,null,"Inspector’s Signature                                                                        "]
[null,null,null,"Print Name                                                                        "]
[null,null,null,"Inspection Date                                                                        "]
[null,null,null,"When vehicle is accepted, complete below"]
[null,null,null,"Accepted By (Print Name)"]
[null,null,null,"Signature"]
[null,null,null,"Acceptance Date"]